Cogmind - Beta 13 @@@ ROGUE MODE // 2024.04.17 @ 23:53:33 Player: Millea Result: Destroyed by G-34 Mercenary with Small Laser Performance ------------- Evolutions (0) 0 Regions Visited (1) 200 Robots Destroyed (26) 130 Value Destroyed (561) 561 Prototype IDs (2) 40 Alien Tech Used (0) 0 Bonus (0) 0 TOTAL SCORE: 931 Bonus ------- None Cogmind --------- Core Integrity 0/250 Matter 221/300 Energy 92/125 System Corruption 0% Temperature Warning (326) Movement Core (2100) Ox41 Location -10/Materials Parts ------- > --- POWER (1) -------- Light Ion Engine > --- PROPULSION (2) --- (None) > --- UTILITY (2) ------ High-capacity Storage Unit Huge Storage Unit > --- WEAPON (2) ------- Medium Laser Light Assault Rifle > --- INVENTORY (25) --- Light Ion Engine Large Storage Unit Medium Laser Medium Laser Medium Laser Medium Laser Small Laser Small Laser Small Laser Light Assault Rifle Light Assault Rifle Light Assault Rifle Peak State ------------ > --- POWER ------------ Light Ion Engine > --- PROPULSION ------- Light Treads Light Treads > --- UTILITY ---------- Large Storage Unit High-capacity Storage Unit > --- WEAPON ----------- Medium Laser Assault Rifle > --- INVENTORY -------- Light Ion Engine Light Ion Engine Light Ion Engine Small Laser Small Laser Small Laser Small Laser Light Assault Rifle Light Assault Rifle Light Assault Rifle [Rating: 8] Favorites ----------- Power Light Ion Engine Engine Light Ion Engine Propulsion Light Treads Treads Light Treads Utility High-capacity Storage Unit Storage High-capacity Storage Unit Weapon Medium Laser Energy Gun Medium Laser Ballistic Gun Assault Rifle Build | -11 -10 ------- Run | Yrd Mat Slots Evolved . | . . Power . | . . Propulsion . | . . Utility . | . . Weapon . | . . Parts Attached 15 | 6 9 Power 4 | 1 3 Engine 4 | 1 3 Core . | . . Reactor . | . . Propulsion 2 | 2 . Treads 2 | 2 . Leg . | . . Wheel . | . . Hover . | . . Flight . | . . Utility 4 | 1 3 Device . | . . Storage 4 | 1 3 Processor . | . . Hackware . | . . Protection . | . . Artifact . | . . Weapon 5 | 2 3 Energy Gun 3 | 1 2 Energy Cannon . | . . Ballistic Gun 2 | 1 1 Ballistic Cannon . | . . Launcher . | . . Special Weapon . | . . Impact Weapon . | . . Slashing Weapon . | . . Piercing Weapon . | . . Special Melee Weapon . | . . Unidentified Prototypes . | . . Parts Lost 4 | . 4 Power 1 | . 1 Propulsion 2 | . 2 Utility . | . . Weapon 1 | . 1 Highest Loss Streak 3 | . 3 To Critical Strikes . | . . Average Slot Usage (%) 99 | . 99 Engine 14 | . 14 Treads 27 | . 27 Storage 27 | . 27 Energy Gun 21 | . 21 Ballistic Gun 6 | . 6 Naked Turns . | . . Heaviest Build 127 | 11 127 Greatest Support 40 | 40 40 Greatest Overweight (x) 3 | . 3 Average Overweight (x) 1 | . 1 Largest Inventory Capacity 25 | 8 25 Average Capacity 19 | 7 20 Most Carried 13 | 2 13 Average Carried 8 | 1 9 Final Capacity 25 | 8 25 Final Carried 12 | 2 12 Class Distribution -------------------- 100% | Mutant Dominant Class ---------------- Mutant | -10/Materials Resources | -11 -10 ----------- Run | Yrd Mat Matter Collected 477 | 251 226 Remotely . | . . Salvage Created 910 | . 910 Parts 49 | . 49 Haulers Intercepted 2 | . 2 Recyclers Shooed 3 | . 3 Parts Field Recycled . | . . Retrieved Matter . | . . Parts Self-Destructed . | . . Prevented . | . . Kills | -11 -10 ------- Run | Yrd Mat Combat Hostiles Destroyed 19 | . 19 Guns 18 | . 18 Classes Destroyed 7 | . 7 Worker 1 | . 1 Hauler 2 | . 2 Recycler 1 | . 1 Operator 1 | . 1 Watcher 2 | . 2 Swarmer 6 | . 6 Grunt 13 | . 13 Best Kill Streak 4 | . 4 Combat Bots Only 4 | . 4 Max Kills in Single Turn 1 | . 1 Gunslinging . | . . Exploded . | . . Melee . | . . Uniques/NPCs Destroyed . | . . Combat | -11 -10 -------- Run | Yrd Mat Hostile Shots Fired 109 | . 109 Missed 23 | . 23 Damage Taken 1008 | . 1008 Core 251 | . 251 Absorbed by Shields . | . . Core Remaining (%) 100 | 100 . Volleys Fired 76 | . 76 Largest 2 | . 2 Hottest 100 | . 100 Shots Fired 148 | . 148 Gun 148 | . 148 Cannon . | . . Launcher . | . . Special . | . . Kinetic 55 | . 55 Thermal 93 | . 93 Explosive . | . . Electromagnetic . | . . Robot Hit Streak 16 | . 16 Robot Miss Streak 4 | . 4 Penetration Max . | . . Secondary Targets 3 | . 3 Max Gunslinging Chain 1 | . 1 Shots Hit Robots 100 | . 100 Core Hits 45 | . 45 Critical Kills . | . . Critical Parts Destroyed . | . . Critical Strikes 6 | . 6 Burn 6 | . 6 Melee Attacks . | . . Impact . | . . Slashing . | . . Piercing . | . . Sneak Attacks . | . . Combat Hostiles . | . . Follow-up Attacks . | . . Damage Inflicted 1244 | . 1244 Guns 1230 | . 1230 Cannons . | . . Explosions . | . . Melee . | . . Ramming 14 | . 14 Kinetic 417 | . 417 Thermal 813 | . 813 Explosive . | . . Electromagnetic . | . . Impact . | . . Slashing . | . . Piercing . | . . Highest Corruption . | . . Average Corruption . | . . Corruption Purged . | . . Corruption Blocked . | . . Overload Shots . | . . Overflow Damage . | . . Projectiles . | . . Explosions . | . . Melee . | . . Knockbacks . | . . Impact . | . . Kinetic . | . . Secondary . | . . Self-Inflicted Damage . | . . Shots . | . . Rammed 3 | . 3 Targets Rammed 3 | . 3 Kicked . | . . Crushed . | . . Highest Temperature 336 | . 336 Average Temperature 117 | . 117 Received Heat Transfer 483 | . 483 Effects 3 | . 3 Shutdowns 1 | . 1 Interference 1 | . 1 Matter Decay 1 | . 1 Siege Activations . | . . Robots Corrupted . | . . Combat Hostiles . | . . Parts Fried . | . . Impact Corruptions . | . . Robots Melted 1 | . 1 Combat Hostiles 1 | . 1 Parts Melted 5 | . 5 Heat Transferred 2635 | . 2635 Parts Sabotaged . | . . Parts Stolen . | . . Parts Stripped . | . . Power Chain Reactions . | . . Alert | -11 -10 ------- Run | Yrd Mat Peak Influence 260 | . 260 Initial . | . . Average 91 | . 96 Maximum Alert Level 1 | . 1 Low Security (%) 83 | 100 82 Level 1 16 | . 17 Level 2 . | . . Level 3 . | . . Level 4 . | . . Level 5 . | . . High Security . | . . Max Security . | . . Squads Dispatched 6 | . 6 Investigation 5 | . 5 Extermination . | . . Reinforcement 1 | . 1 Assault . | . . Garrison . | . . Intercept . | . . Searches Triggered . | . . Construction Impeded . | . . Haulers Reinforced . | . . Active Scanning Responses . | . . Cargo Convoy Interrupts . | . . Stealth | -11 -10 --------- Run | Yrd Mat Distress Signals 2 | . 2 Communications Jammed . | . . Distress Signals . | . . Times Spotted 31 | . 31 Peak Tracking Total 5 | . 5 Tactical Retreats 2 | . 2 Traps | -11 -10 ------- Run | Yrd Mat Traps Triggered 3 | . 3 Indirectly . | . . Trap Hack Attempts . | . . Triggered . | . . Disarmed . | . . Reprogrammed . | . . Reused . | . . Traps Extracted . | . . Installed . | . . Triggered . | . . Machines | -11 -10 ---------- Run | Yrd Mat Machines Disabled . | . . Max in Single Turn . | . . Machines Repaired . | . . Machines Dismantled . | . . Machines Sabotaged . | . . Overloaded Fab Kills . | . . Hacking | -11 -10 --------- Run | Yrd Mat Machines Accessed 6 | . 6 Terminals 4 | . 4 Fabricators . | . . Repair Stations . | . . Recycling Units 2 | . 2 Scanalyzers . | . . Garrison Access . | . . Total Hacks 22 | . 22 Successful 8 | . 8 Failed 13 | . 13 Catastrophic 1 | . 1 Database Lockouts 1 | . 1 Manual 19 | . 19 Terminals 14 | . 14 Fabricators . | . . Repair Stations . | . . Recycling Units 8 | . 8 Scanalyzers . | . . Garrison Access . | . . Terminal Hacks 2 | . 2 Robot Analysis 1 | . 1 Prototype ID Bank 1 | . 1 Fabricator Hacks . | . . Repair Station Hacks . | . . Recycling Unit Hacks 1 | . 1 Retrieve Components 1 | . 1 Scanalyzer . | . . Garrison Access Hacks . | . . Unauthorized Hacks 5 | . 5 Terminals 2 | . 2 Botnet 2 | . 2 Fabricators . | . . Repair Stations . | . . Recycling Units 3 | . 3 Reject 1 | . 1 Mask 1 | . 1 Tunnel 1 | . 1 Scanalyzers . | . . Garrison Access . | . . Data Cores Recovered 1 | . 1 Used 1 | . 1 Hacking Detections 5 | . 5 Full Trace Events 3 | . 3 Feedback Events . | . . Feedback Blocked . | . . Robot Schematics Acquired . | . . Robots Built . | . . Authchips . | . . Time . | . . Total Robot Build Rating . | . . Part Schematics Acquired . | . . Parts Built . | . . Authchips . | . . Time . | . . Total Part Build Rating . | . . Parts Repaired . | . . Time . | . . Parts Recycled . | . . Recycled Matter . | . . Retrieved Matter . | . . Retrieved Components . | . . Parts Scanalyzed . | . . Part Schematics Acquired . | . . Parts Damaged . | . . Bothacking | -11 -10 ------------ Run | Yrd Mat Used RIF Installer . | . . Robots Hacked . | . . Non-combat . | . . Combat . | . . Robot Hacks Applied . | . . Relay Couplers Released . | . . Fabnet Peak Effective % . | . . Robots Rewired . | . . Allies Hacked . | . . Hacks Repelled . | . . Allies | -11 -10 -------- Run | Yrd Mat Total Allies . | . . Largest Group . | . . Highest-Rated Group . | . . Highest-Rated Ally . | . . Total Orders . | . . Ally Attacks . | . . Total Damage . | . . Kills . | . . Allies Corrupted . | . . Allies Melted . | . . Intel | -11 -10 ------- Run | Yrd Mat Robot Analysis Total 1 | . 1 Derelict Logs Recovered . | . . Drone Launches . | . . Drone Recoveries . | . . Exploration | -11 -10 ------------- Run | Yrd Mat Turns Passed 1429 | 74 1355 Spaces Moved 434 | 46 388 Core 14 | 14 . Treads 420 | 32 388 Legs . | . . Wheels . | . . Hover . | . . Flight . | . . Fastest Speed 50 | 50 160 Average Speed 239 | 126 252 Slowest Speed 400 | 160 400 Overloaded Moves . | . . Propulsion Burnouts . | . . Robots Hopped . | . . Cave-ins Triggered . | . . Exploration Rate (%) 31 | 4 58 Regions Visited 1 Branch Regions . Pre-discovered Areas 1 | . 1 Known Exits Taken . | . . Unknown Exits Taken 1 | 1 . Scrap Searched . | . . Spaces Dug . | . . Terrain Destroyed . | . . Melee . | . . Projectile . | . . AOE . | . . Terrain Rammed . | . . Walls Destroyed . | . . Machines Disabled . | . . Actions | -11 -10 --------- Run | Yrd Mat Total 668 | 59 609 Wait 123 | 6 117 Move 433 | 45 388 Hop . | . . Pick Up 14 | 2 12 Fast Attach 7 | 6 1 Attach 2 | . 2 Detach . | . . Swap 6 | . 6 Drop 4 | . 4 Fire 76 | . 76 Melee . | . . Ram . | . . Kick . | . . Crush 3 | . 3 Escape Stasis . | . . Rewire . | . . Trap . | . . Miscellaneous . | . . Route ------- -11/Scrapyard -10/Materials (discovered 2 exits: [*Mat x2]) History --------- Turn | Location | Event 5 | -11/Scrapyard | Discovered new exit (range 15) 75 | -11/Scrapyard | Entered Materials 310 | -10/Materials | Build established: Mutant 706 | -10/Materials | Core integrity fell below 50% 742 | -10/Materials | Discovered new exit (range 12) 952 | -10/Materials | Discovered new exit (range 7) 1307 | -10/Materials | Central database locked down 1416 | -10/Materials | Core integrity fell below 20% 1430 | -10/Materials | Destroyed by G-34 Mercenary with Small Laser Last Messages --------------- 01402_ R-06 Scavenger collects Com. Wheel. 01408_ G-34 Mercenary suffers critical hit (Burn). 01410_ Lgt. Treads destroyed. 01411_ G-34 Mercenary heat damages Aluminum Leg, Sml. Laser, Ion Engine, Aluminum Leg. 01414_ Destroyed Ion Engine. 01415_ G-34 Mercenary heat damages core (-5). 01415_ R-06 Scavenger collects Heat Sink. 01417_ G-47 Trooper suffers critical hit (Burn). 01420_ Overheating: System interference. 01420_ Med. Laser temporarily disabled. 01421_ Critical hit (Burn: +37). 01422_ Lgt. Ion Engine destroyed. 01425_ Power failure, Lgt. Ion Engine shutdown. 01426_ G-47 Trooper heat spikes uncontrollably. 01426_ Lgt. Treads destroyed. 01427_ G-47 Trooper overheating. 01428_ Overheating: Matter decay (-66). 01428_ G-47 Trooper overheating. Map ----- +----------------------------------------------------+ | ????# !#??????????????????????????? | | ##### !#??????????????????????????? | | """## !##??????????????????????????? | | "Y"## ########???????????????????????????? | | * #??????????????????????????????????? | | = #??????????????????????????????????? | | """#??????????????????????????????????? | | T"#??????????????????????????????????? | | """#??????????????????????????????????? | | #??????????????????????????????????? | | #????????????????? ???????????????? | | T"### #????????????????? ???????????????? | | ###?# #????????????????? ???????????????? | | ????? #????????????????? ???????????????? | | ??????#????????????????? #??????????????? | | ???#???????????????????? r ??????????????? | | ??"#???????????????????? ??????????????? | | ????????????????????? ??????????????? | | ??????????????????????? ??????????????? | | ##### #????????????????? ??????????????? | | % #?????????????????# #??????????????? | | % #????###########??#%#??????????????? | | " % #????# ^ #??# #??????????????? | | """" #????# """ """ #??# #??????????????? | | """ ###### """ """ #??# #??????????????? | | # """ """ #??#@#??????????????? | | # """ " #?##%##?????????????? | | + ### #?????????????? | | /####### # / gT #?????????????? | | #?# # ###g #?????????????? | | #?# ######## #?## ##?????????????? | | #?# #??# # ?#r#??????????????? | | === #?# #??####""" # #??????????????? | | === #?# #?????#""" # #??????????????? | | == #?# #?????#""" # #??????????????? | | #?# #?????#""" # ??????????????? | | #?# #?????#""" # ??????????????? | | #?# #????????? + ??????????????? | | ####+#?# #????????? # ??????????????? | | ## ### #????????? ## ??????????????? | | # #?????????? [#?|??????????????? | | =# #?????????? ?????????????????? | | # #?????????? ?????????????????? | | # < #?????????? ??????????????????? | | +## #?????????????????????????????? | | ######?????????????????????????????? | | #??????????????????????????????????? | | #??????????????????????????????????? | | #######??????????????????????????????????? | | #???????????????????????????????????? | +----------------------------------------------------+ Best States ------------- Heat Dissipation 25 Energy Generation 10 Energy Capacity 125 Matter Stores 300 Matter Capacity 300 Sight Range 16 Terrain Scan Density 10 Evasion (%) 40 Recoil Reduction 2 Item Schematics ----------------- None Robot Schematics ------------------ None Fabricated ------------ Nothing Alien Tech Used ----------------- None Achievements -------------- None Challenges ------------ None Game ------ Seed CouplerMobileAirjet Manual? 0 Play Time 00:14:22 Cumulative 217.6 hours Start 2024.04.17 @ 23:09:48 End 2024.04.17 @ 23:53:33 Sessions 1 Manual Loads 0 Difficulty Rogue Special Mode None Game No. 173 Rogue 173 Adventurer 0 Explorer 0 Win Type - Total 6 Types 5/0/0/1/0/0/0/0/0 Lore% 73 Gallery% 79 Achievement% 65 Wizard Run 0 Options --------- Layout 2 ASCII 1 Keyboard 1 Movement Vi Keybinds 0 Fullscreen 2 Font 24/Smallcaps Map View 50x44 Zoom Use 0% Tactical HUD 1 Map Filters NONE Filters NONE Steam 1 RUN: 284d9d14-3cbb-46a4-afb3-bcbea80288a5